bitfinex/quotes_ETHUSD_20240910
["timestamp","ask_amount","ask_price","bid_price","bid_amount"]
[1725932408882,9.72001972,2345.3,2345.2,0.1191433]
[1725932409173,4.80701717,2345.3,2345.2,0.1191433]
[1725932409972,7.92085604,2345.3,2345.2,0.1191433]
[1725932410182,7.9208772,2345.3,2345.2,0.1191433]
[1725932410837,6.2204831,2345.3,2345.2,0.1191433]
[1725932411039,8.90881647,2345.3,2345.2,0.1191433]
[1725932413366,5.79495644,2345.3,2345.2,0.1191433]
[1725932413863,8.90881647,2345.3,2345.2,0.1191433]
[1725932414866,8.90956414,2345.3,2345.2,0.1191433]
[1725932416891,5.79495644,2345.3,2345.2,0.1191433]
[1725932417096,8.90966194,2345.3,2345.2,0.1191433]
[1725932425023,8.91012455,2345.3,2345.2,0.1191433]
[1725932428451,5.79495644,2345.3,2345.2,0.1191433]
[1725932428740,8.91012455,2345.3,2345.2,0.1191433]
[1725932428940,5.79495644,2345.3,2345.2,0.1191433]
[1725932429915,8.91012455,2345.3,2345.2,0.1191433]
[1725932430111,7.91917704,2345.3,2345.2,0.1191433]
[1725932430844,4.80701717,2345.3,2345.2,0.1191433]
[1725932431000,7.91917704,2345.3,2345.2,0.1191433]
[1725932431206,4.80701717,2345.3,2345.2,0.1191433]
[1725932431403,8.71109474,2345.3,2345.2,0.1191433]
[1725932431899,6.14893487,2345.3,2345.2,0.1191433]
[1725932434219,8.71155252,2345.3,2345.2,0.1191433]
[1725932434421,5.59893487,2345.3,2345.2,0.1191433]
[1725932436374,8.71144424,2345.3,2345.2,0.1191433]
[1725932436530,5.59893487,2345.3,2345.2,0.1191433]
[1725932436724,8.71183252,2345.3,2345.2,0.1191433]
[1725932437166,5.59893487,2345.3,2345.2,0.1191433]
[1725932437695,6.21960073,2345.3,2345.2,0.1191433]
[1725932437978,7.91999483,2345.3,2345.2,0.1191433]
[1725932438122,3.10662307,2345.3,2345.2,0.1191433]
[1725932438327,4.80701717,2345.3,2345.2,0.1191433]
[1725932438650,3.10662307,2345.3,2345.2,0.1191433]
[1725932438858,4.80701717,2345.3,2345.2,0.1191433]
[1725932454364,2.22308525,2345.3,2345.2,2.65664763]
[1725932454594,1.77864324,2345.4,2345.2,2.65664763]
[1725932455168,1.77864324,2345.5,2345.2,2.65664763]
[1725932455367,1.77864324,2345.4,2345.3,2.55036476]
[1725932456108,1.77864324,2345.5,2345.3,2.55036476]
[1725932457167,2.22308525,2345.6,2345.3,2.55036476]
[1725932457168,1.77864324,2345.6,2345.3,2.55036476]
[1725932457412,1.88523928,2345.7,2345.3,2.55036476]
[1725932458069,1.77864324,2345.7,2345.3,2.55036476]
[1725932458269,1.77864324,2345.7,2345.4,2.5489779]
[1725932458492,1.77864324,2345.8,2345.4,2.5489779]
[1725932458870,1.88522674,2345.8,2345.4,2.5489779]
[1725932459917,0.1065835,2345.8,2345.4,2.5489779]
[1725932460117,1.88522674,2345.8,2345.4,2.5489779]
[1725932460319,0.1065835,2345.8,2345.5,0.25489779]
[1725932460627,0.1065835,2345.8,2345.6,2.2735]
[1725932461613,0.10658254,2345.9,2345.6,2.2735]
[1725932461830,3.58561988,2345.9,2345.6,2.2735]
[1725932462808,1.7003941,2345.7,2345.3,2.3698]
[1725932463126,1.7003941,2345.7,2345.2,0.1191433]
[1725932463127,1.7003941,2345.4,2345.2,0.1191433]
[1725932463421,0.45451442,2345.3,2345.2,0.1191433]
[1725932463927,2.23315766,2345.3,2345.2,0.1191433]
[1725932464125,7.13806965,2345.3,2345.2,0.1191433]
[1725932464330,8.91671289,2345.3,2345.2,0.1191433]
[1725932467132,3.45451442,2345.3,2345.2,0.1191433]
[1725932467343,0.10661069,2345.3,2345.2,0.1191433]
[1725932467695,1.88525393,2345.3,2345.2,0.1191433]
[1725932468048,3.10661069,2345.3,2345.2,0.1191433]
[1725932468333,0.10661069,2345.3,2345.2,0.1191433]
[1725932468920,0.10661069,2345.3,2345.2,2.5050433]
[1725932469126,4.88524757,2345.4,2345.2,2.5050433]
[1725932469641,0.10660433,2345.4,2345.2,2.5050433]
[1725932469814,0.10660433,2345.4,2345.3,0.25050433]
[1725932470168,0.10660085,2345.5,2345.3,0.25050433]
[1725932470438,0.10660085,2345.5,2345.2,2.5050433]
[1725932470794,0.10660085,2345.5,2345.2,2.4171433]
[1725932472704,1.88524409,2345.5,2345.2,2.4171433]
[1725932472905,4.88524409,2345.5,2345.2,2.4171433]
[1725932473249,3.10660085,2345.5,2345.2,2.4171433]
[1725932473405,0.10660085,2345.5,2345.2,2.4171433]
[1725932474411,3.79015608,2345.5,2345.2,2.4171433]
[1725932474604,3.0,2345.4,2345.2,2.4171433]
[1725932475556,0.10660359,2345.3,2345.2,0.0312433]
[1725932476568,0.10660359,2345.3,2345.2,2.3567433]
[1725932476702,0.10660183,2345.4,2345.2,2.3567433]
[1725932476908,0.10660071,2345.5,2345.2,2.59241763]
[1725932477103,0.10659917,2345.6,2345.2,2.59241763]
[1725932477401,3.10659361,2345.7,2345.2,2.59241763]
[1725932477645,0.10659361,2345.7,2345.2,2.59241763]
[1725932477821,0.10659361,2345.7,2345.3,2.59794176]
[1725932478517,0.10658837,2345.8,2345.3,2.59794176]
[1725932482341,1.88522871,2345.9,2345.3,2.59794176]
[1725932487067,0.10658547,2345.9,2345.3,2.59794176]
[1725932487221,1.88522871,2345.9,2345.3,2.59794176]
[1725932487561,1.88522871,2345.9,2345.4,0.26291851]
[1725932487562,0.10658547,2345.9,2345.4,0.26291851]
[1725932487862,1.88522871,2345.9,2345.4,0.26291851]
[1725932488241,3.58412878,2345.9,2345.4,0.26291851]
[1725932489761,3.58412878,2345.9,2345.3,2.3387]
[1725932490370,1.69890007,2345.7,2345.3,2.3387]
[1725932490575,0.10659241,2345.6,2345.3,2.3387]
[1725932498110,1.88523565,2345.6,2345.3,2.3387]
[1725932498536,3.47754331,2345.5,2345.2,0.0312433]
[1725932498743,0.10660484,2345.4,2345.2,0.0312433]
[1725932499091,1.88524808,2345.4,2345.2,0.0312433]
[1725932510548,4.09420007,2345.3,2345.2,0.0312433]
[1725932510709,9.75928426,2345.3,2345.2,0.0312433]
[1725932511553,7.09420007,2345.3,2345.2,0.0312433]
[1725932511705,10.8418315,2345.3,2345.2,0.0312433]
[1725932511908,8.17674731,2345.3,2345.2,0.0312433]
[1725932517428,10.39540235,2345.3,2345.2,0.0312433]
[1725932517633,10.39541037,2345.3,2345.2,0.0312433]
[1725932521159,8.17674731,2345.3,2345.2,0.0312433]
[1725932521667,10.39466325,2345.3,2345.2,0.0312433]
[1725932521964,8.17674731,2345.3,2345.2,0.0312433]
[1725932522172,10.3946351,2345.3,2345.2,0.0312433]
[1725932522461,8.17674731,2345.3,2345.2,0.0312433]
[1725932525847,8.17320814,2345.3,2345.2,0.0312433]
[1725932532091,5.77790814,2345.3,2345.2,0.0312433]
[1725932533347,10.87366837,2345.3,2345.2,0.0312433]
[1725932533544,10.44773994,2345.3,2345.2,0.0312433]
[1725932534062,10.44824322,2345.3,2345.2,0.0312433]
[1725932534274,7.78987971,2345.3,2345.2,0.0312433]
[1725932535228,10.44794881,2345.3,2345.2,0.0312433]
[1725932535465,11.80282738,2345.3,2345.2,0.0312433]
[1725932535776,9.14475828,2345.3,2345.2,0.0312433]
[1725932536101,11.80376908,2345.3,2345.2,0.0312433]
[1725932536302,9.14475828,2345.3,2345.2,0.0312433]
[1725932537604,11.80371877,2345.3,2345.2,0.0312433]
[1725932538403,9.14475828,2345.3,2345.2,0.0312433]
[1725932538805,11.80382161,2345.3,2345.2,0.0312433]
[1725932539113,11.80382164,2345.3,2345.2,0.0312433]
[1725932539279,9.14475828,2345.3,2345.2,0.0312433]
[1725932539685,11.8038736,2345.3,2345.2,0.0312433]
[1725932540108,9.14475828,2345.3,2345.2,0.0312433]
[1725932540308,11.80385135,2345.3,2345.2,0.0312433]
[1725932540810,9.14475828,2345.3,2345.2,0.0312433]
[1725932546999,5.01149738,2345.3,2345.2,0.0312433]
[1725932547338,4.80551888,2345.3,2345.2,0.0312433]
[1725932547542,7.46610985,2345.3,2345.2,0.0312433]
[1725932547840,4.80551888,2345.3,2345.2,0.0312433]
[1725932549133,7.46610985,2345.3,2345.2,0.0312433]
[1725932551002,7.46728295,2345.3,2345.2,0.0312433]
[1725932551835,5.86278632,2345.3,2345.2,0.0312433]
[1725932552139,9.07488674,2345.3,2345.2,0.0312433]
[1725932552342,6.41278632,2345.3,2345.2,0.0312433]
[1725932554415,9.51817774,2345.3,2345.2,0.0312433]
[1725932554842,6.41278632,2345.3,2345.2,0.0312433]
[1725932555346,9.51817774,2345.3,2345.2,0.0312433]
[1725932555909,9.52080092,2345.3,2345.2,0.0312433]
[1725932561926,8.74838632,2345.3,2345.2,0.0312433]
[1725932562140,8.74838632,2345.3,2344.1,2.47968649]
[1725932562141,2.44223399,2345.2,2344.1,2.47968649]
[1725932562344,1.69890007,2344.2,2344.1,2.47968649]
[1725932562544,3.58149157,2344.2,2344.1,2.47968649]
[1725932563274,3.58149157,2344.2,2344.1,0.02778649]
[1725932563564,4.80555386,2344.2,2344.1,0.02778649]
[1725932563771,1.80555386,2344.2,2344.1,0.02778649]
[1725932564132,4.02344788,2344.2,2344.1,0.02778649]
[1725932564349,7.02344788,2344.2,2344.1,0.02778649]
[1725932565688,4.80555386,2344.2,2344.1,0.02778649]
[1725932565973,6.57933374,2344.2,2344.1,0.02778649]
[1725932566162,6.57877161,2344.2,2344.1,0.02778649]
[1725932569643,4.80555386,2344.2,2344.1,0.02778649]
[1725932570279,4.80555386,2344.2,2344.1,2.50148649]
[1725932570479,1.80555386,2344.2,2344.1,2.50148649]
[1725932570692,1.80555386,2344.2,2344.1,2.75163514]
[1725932571680,1.80555386,2344.2,2344.1,2.50148649]
[1725932577294,0.10665379,2344.2,2344.1,2.50148649]
[1725932577797,0.10665093,2344.3,2344.1,2.50148649]
[1725932580102,1.69890007,2344.2,2344.1,2.50148649]
[1725932580657,1.80555095,2344.2,2344.1,2.50148649]
[1725932580816,2.46342782,2344.2,2344.1,0.02778649]
[1725932581030,9.62204557,2344.2,2344.1,0.02778649]
[1725932581170,8.39882782,2344.2,2344.1,0.02778649]
[1725932581803,11.05616392,2344.2,2344.1,0.02778649]
[1725932582105,8.39882782,2344.2,2344.1,0.02778649]
[1725932584603,10.61116764,2344.2,2344.1,0.02778649]
[1725932584801,8.39882782,2344.2,2344.1,0.02778649]
[1725932585224,10.61089196,2344.2,2344.1,0.02778649]
[1725932585429,8.39882782,2344.2,2344.1,0.02778649]
[1725932586225,10.61080496,2344.2,2344.1,0.02778649]
[1725932587329,10.61053174,2344.2,2344.1,0.02778649]
[1725932589038,10.61001181,2344.2,2344.1,0.02778649]
[1725932589330,8.22461181,2344.2,2343.6,0.011]
[1725932589541,4.07740007,2343.7,2343.6,0.011]
[1725932589897,7.07740007,2343.7,2343.6,0.011]
[1725932590965,7.18408879,2343.7,2343.6,0.011]
[1725932591630,1.69890007,2343.3,2343.1,2.3646]
[1725932593589,3.0,2343.5,2343.1,2.61297433]
[1725932593901,1.69890007,2343.6,2343.1,2.3646]
[1725932594112,1.69890007,2343.4,2343.1,2.3646]
[1725932597444,0.10668596,2343.3,2343.1,2.3646]
[1725932598858,4.18620007,2343.2,2342.9,0.1191433]
[1725932599037,1.69890007,2343.0,2342.9,0.1191433]
[1725932599211,2.4996,2342.9,2342.3,0.01]
[1725932599436,5.96720246,2342.4,2342.3,0.01]
[1725932599634,6.07396921,2342.4,2342.3,0.01]
[1725932599819,7.89468765,2342.4,2342.3,0.01]
[1725932600134,10.89473348,2342.4,2342.3,0.01]
[1725932600316,10.78796673,2342.4,2341.4,1.8564]
[1725932600518,1.69890007,2341.8,2341.4,1.8564]
[1725932600718,1.69890007,2341.6,2341.4,1.8564]
[1725932600920,0.10677827,2341.5,2341.4,1.8564]
[1725932601117,0.10677827,2341.5,2340.8,19.73]
[1725932601369,1.69890007,2341.4,2340.9,1.66982772]
[1725932601670,1.76555248,2342.2,2340.5,0.1191433]
[1725932601671,1.69890007,2341.0,2340.5,0.1191433]
[1725932601827,0.10680605,2340.9,2340.5,0.1191433]
[1725932602247,3.0,2341.7,2339.5,2.43585086]
[1725932602248,3.69669468,2340.6,2339.5,0.51166466]
[1725932602562,2.3993,2340.7,2339.6,0.08549228]
[1725932602563,3.10686535,2340.5,2339.6,0.08549228]
[1725932602780,3.0,2340.5,2339.5,3.69669468]
[1725932602921,0.10682016,2340.8,2339.6,0.52208297]
[1725932603301,3.69669468,2339.9,2338.4,2.88993903]
[1725932603425,3.69669468,2339.9,2338.6,2.3588]
[1725932603426,0.10687379,2339.8,2338.6,2.3588]
[1725932603626,3.10687379,2339.8,2338.6,2.3588]
[1725932603823,6.11679468,2340.3,2338.9,3.69669468]
[1725932604056,6.11679468,2340.3,2339.0,2.3588]
[1725932604057,3.0,2340.2,2339.0,2.3588]
[1725932604257,0.10684367,2340.1,2339.1,0.60554947]
[1725932604473,0.10684367,2340.1,2339.2,2.4373]
[1725932605238,0.10684367,2340.1,2339.3,0.08547512]
[1725932605434,0.10684367,2340.1,2339.4,2.2974]
[1725932605648,0.10683932,2340.3,2339.4,2.2974]
[1725932605867,0.10683932,2340.3,2339.5,0.22974]
[1725932606523,0.10683932,2340.3,2339.6,2.2971]
[1725932606970,0.10683259,2340.5,2339.6,2.2971]
[1725932607172,0.10683259,2340.5,2339.7,0.08546607]
[1725932607379,0.10683259,2340.5,2339.6,2.2971]
[1725932607561,0.10682703,2340.6,2339.8,2.4134]
[1725932607761,0.10682012,2340.8,2339.9,0.0854561]
[1725932607941,0.10682012,2340.8,2339.9,3.78215078]
[1725932608142,0.49566798,2341.8,2339.7,0.252684]
[1725932608143,0.10681747,2341.0,2340.2,3.69669468]
[1725932608341,3.69669468,2341.6,2340.4,2.3571]
[1725932608342,0.10680146,2341.5,2340.4,2.3571]
[1725932608548,3.69669468,2341.4,2340.4,2.97102359]
[1725932608778,0.10680144,2341.3,2340.5,0.08544115]
[1725932608996,0.10680144,2341.3,2340.5,0.08544007]
[1725932609473,0.10679503,2341.5,2340.5,0.08544007]
[1725932609657,0.10679503,2341.5,2340.6,3.69669468]
[1725932609857,0.10679503,2341.5,2340.7,2.95443898]
[1725932610042,0.10678124,2341.7,2340.8,0.08542499]
[1725932610454,0.10678124,2341.7,2340.8,3.78211668]
[1725932611073,0.10677257,2341.9,2340.9,2.3713]
[1725932611243,0.10677257,2341.9,2341.0,3.78210887]
[1725932611429,0.10677257,2341.9,2341.1,0.61534089]
[1725932611633,0.10677257,2341.9,2341.2,0.08541527]
[1725932612168,0.10676695,2342.1,2341.2,0.08541527]
[1725932612847,0.10676695,2342.1,2341.3,2.4604]
[1725932613159,3.69669468,2342.6,2341.4,3.78209605]
[1725932613160,0.10675171,2342.3,2341.4,3.78209605]
[1725932613361,0.10675171,2342.3,2341.5,0.6242496]
[1725932613680,0.10675171,2342.3,2341.6,0.0854009]
[1725932614176,0.10674857,2342.5,2341.6,0.0854009]
[1725932614378,0.10674857,2342.5,2341.6,3.78209558]
[1725932615201,3.69669468,2342.8,2341.6,3.78209558]
[1725932615202,0.10674401,2342.7,2341.6,3.78209558]
[1725932615477,0.48708788,2342.7,2341.8,2.3422]
[1725932615686,0.48708788,2342.7,2341.8,2.42759299]
[1725932615863,3.48708788,2342.7,2341.8,2.42759299]
[1725932616240,0.10674401,2342.7,2341.8,2.42759299]
[1725932616574,0.10673313,2342.9,2341.8,6.12428767]
[1725932616778,0.10673313,2342.9,2341.8,6.03889468]
[1725932617442,3.10673313,2342.9,2341.8,6.03889468]
[1725932617636,0.68034278,2342.8,2341.9,0.64795292]
[1725932617839,0.10672501,2342.7,2341.9,0.64795292]
[1725932618133,3.10672501,2342.7,2341.8,2.3422]
[1725932620313,0.10672501,2342.7,2341.8,2.3422]
[1725932622145,0.10672501,2342.7,2341.9,0.08538611]
[1725932622351,3.0,2342.9,2341.9,0.08538611]
[1725932622352,0.10672571,2342.8,2341.9,0.08538611]
[1725932622552,0.10672571,2342.8,2341.9,1.47787764]
[1725932622753,0.10672571,2342.8,2341.9,1.39249153]
[1725932624666,3.69669468,2342.6,2341.9,1.39249153]
[1725932624990,3.10673267,2342.5,2341.9,1.39249153]
[1725932625167,3.1067326,2342.7,2341.9,1.39249153]
[1725932625352,0.1067326,2342.7,2342.0,0.37346915]
[1725932625552,0.1067326,2342.7,2341.9,1.39249153]
[1725932626056,0.10672847,2342.8,2341.9,1.39249153]
[1725932630491,0.10672847,2342.8,2342.0,0.08538258]
[1725932630863,0.10672847,2342.8,2342.1,2.3779]
[1725932643435,3.80341811,2343.0,2342.1,2.3779]
[1725932643635,0.72327067,2342.9,2342.1,2.3779]
[1725932643921,0.10672343,2342.8,2342.1,2.3779]
[1725932648537,3.10672343,2342.8,2342.2,0.08537864]
[1725932648839,0.10672313,2343.0,2342.2,2.46697864]
[1725932649133,0.10672313,2343.0,2342.2,2.3816]
[1725932649334,0.82999377,2343.0,2342.2,2.62829777]
[1725932649508,0.82999377,2343.0,2342.3,0.08537766]
[1725932649705,0.82999377,2343.0,2342.3,0.08537739]
[1725932649893,0.82999377,2343.0,2342.2,2.7136754]
[1725932650290,0.82999377,2343.0,2342.3,0.08537797]
[1725932650499,0.82999377,2343.0,2342.2,2.62829777]
[1725932651340,0.42592824,2342.9,2342.2,2.62829777]
[1725932651548,0.10671749,2342.8,2342.2,2.62829777]
[1725932656208,1.87226997,2342.8,2342.2,2.62829777]
[1725932656448,0.10672235,2342.7,2342.2,2.62829777]
[1725932657316,1.87227483,2342.7,2342.2,2.62829777]
[1725932657544,4.87227483,2342.7,2342.2,2.62829777]
[1725932658234,1.76555248,2342.6,2342.2,2.62829777]
[1725932658548,4.76555248,2342.6,2342.2,2.62829777]
[1725932659353,1.76555248,2342.5,2342.4,2.4193]
[1725932659588,1.87226604,2343.0,2342.5,2.4193]
[1725932659746,1.76555248,2343.0,2342.5,2.4193]
[1725932659948,1.76555248,2343.1,2342.6,0.24193]
[1725932660495,0.10670214,2343.0,2342.5,2.4193]
[1725932660813,1.76555248,2342.8,2342.5,2.4193]
[1725932660942,1.8722716,2342.7,2342.5,2.4193]
[1725932661863,1.76555248,2342.7,2342.5,2.4193]
[1725932662789,1.87227143,2342.7,2342.3,2.4453]
[1725932664191,1.76555248,2342.8,2342.4,0.08537768]
[1725932664406,2.32599772,2342.9,2342.4,2.4453]
[1725932664407,1.76555248,2342.9,2342.4,2.4453]
[1725932664623,2.21927561,2343.0,2342.4,2.4453]
[1725932664624,1.76555248,2342.8,2342.5,3.78205734]
[1725932664899,2.66313073,2343.2,2342.7,2.4453]
[1725932664900,1.76555248,2343.1,2342.7,2.4453]
[1725932668170,1.87224998,2343.2,2342.7,2.4453]
[1725932669381,1.76555248,2343.1,2342.7,3.05949947]
[1725932669967,1.87224998,2343.2,2342.7,3.05949947]
[1725932670373,1.76555248,2343.2,2342.8,2.34525797]
[1725932670571,1.76555248,2343.3,2342.8,2.34525797]
[1725932672713,1.76555248,2343.4,2342.8,2.34525797]
[1725932672921,1.76555248,2343.4,2342.9,2.92731521]
[1725932673106,1.76555248,2343.4,2343.0,0.08534633]
[1725932674683,1.76555248,2343.4,2342.9,2.92731521]
[1725932675792,1.76555248,2343.4,2343.0,0.08534637]
[1725932676292,1.76555248,2343.4,2342.9,2.92731521]
[1725932676475,1.76555248,2343.4,2343.0,0.29273152]
[1725932676672,1.77672906,2343.7,2343.4,2.2617]
[1725932676926,0.10666116,2344.3,2343.7,2.2617]
[1725932677233,0.10666116,2344.3,2343.5,1.50164236]
[1725932677234,3.69669468,2343.9,2343.5,1.50164236]
[1725932677515,3.69669468,2343.9,2343.0,2.4856]
[1725932677516,3.69669468,2343.7,2343.0,2.4856]
[1725932677679,2.32823864,2343.6,2343.0,2.4856]
[1725932678024,3.69669468,2343.5,2343.0,2.4856]
[1725932678315,0.10669749,2343.4,2343.0,2.4856]
[1725932679515,0.10669732,2343.5,2343.0,2.73416]
[1725932680616,0.10668828,2343.6,2343.0,2.73416]
[1725932680811,3.80338296,2343.6,2343.0,2.73416]
[1725932681120,3.0,2343.5,2343.0,2.73416]
[1725932681300,0.10668826,2343.4,2343.0,2.73416]
[1725932682513,3.10668821,2343.5,2343.1,0.273416]
[1725932682884,0.10668821,2343.5,2343.1,0.273416]
[1725932683403,3.80338289,2343.5,2343.1,0.273416]
[1725932691813,0.10668821,2343.5,2343.1,0.273416]
[1725932691987,0.1066835,2343.6,2343.1,0.273416]
[1725932692182,3.69669468,2343.5,2343.1,0.273416]
[1725932695433,3.69669468,2343.5,2343.0,2.4856]
[1725932700233,1.70264229,2343.3,2343.0,2.4856]
[1725932701067,1.70264229,2343.1,2342.7,2.3813]
[1725932701232,1.70264229,2342.9,2342.7,2.3813]
[1725932701432,1.70264229,2342.9,2342.8,0.23813]
[1725932702282,1.70264229,2343.1,2342.8,0.23813]
[1725932705305,1.70264229,2343.3,2342.9,2.2817]
[1725932705452,1.70264229,2343.3,2343.0,0.251983]
[1725932706388,3.10668783,2343.5,2343.0,0.251983]
[1725932706548,1.70264229,2343.4,2343.0,0.251983]
[1725932707055,1.70264229,2343.2,2343.0,0.251983]
[1725932707258,0.10668414,2343.3,2342.7,2.3104]
[1725932707450,1.70264229,2343.0,2342.7,2.3104]
[1725932708448,1.70264229,2343.2,2342.7,2.3104]
[1725932709794,1.70264229,2343.2,2342.8,0.4387314]
[1725932709994,1.70264229,2343.2,2342.9,2.4158]
[1725932710192,1.70264229,2343.2,2343.0,0.24158]
[1725932711499,2.2181994,2343.4,2343.0,0.24158]
[1725932712261,2.22478266,2343.4,2343.0,0.24158]
[1725932713360,2.22478266,2343.7,2343.2,2.3859]
[1725932713559,2.22478266,2343.9,2343.4,2.3859]
[1725932713759,1.70264229,2343.7,2343.4,2.3859]
[1725932714005,1.70264229,2343.7,2342.9,1.77987807]
[1725932714006,1.70264229,2343.5,2342.8,3.27583903]
[1725932714166,0.10667777,2343.6,2342.9,1.44644239]
[1725932714167,1.70264229,2343.3,2342.9,1.44644239]
[1725932714363,1.70264229,2343.1,2342.6,0.88993903]
[1725932714566,1.70264229,2343.1,2342.3,3.27583903]
[1725932714567,1.70264229,2342.7,2342.3,3.27583903]
[1725932714779,1.70264229,2342.5,2342.3,2.3859]
[1725932715463,1.80936356,2342.7,2342.3,2.3859]
[1725932716199,0.10672127,2342.7,2342.3,2.3859]
[1725932716502,2.33034045,2342.9,2342.4,1.09329199]
[1725932716806,5.33034045,2342.9,2342.4,0.08537639]
[1725932716984,1.77947306,2342.8,2342.4,0.08537639]
[1725932717402,1.77947306,2342.8,2342.4,0.08537082]
[1725932723421,2.22426257,2342.9,2342.4,0.08537082]
[1725932723422,1.77947306,2342.9,2342.4,0.08537082]
[1725932723635,1.77947306,2342.9,2342.4,0.58774105]
[1725932723917,1.88618351,2343.1,2342.4,0.58774105]
[1725932724229,1.88618351,2343.1,2342.6,2.4984]
[1725932726877,0.10671045,2343.1,2342.6,2.4984]
[1725932729116,3.69096609,2342.9,2342.4,0.08537082]
[1725932729325,3.79767767,2342.9,2342.3,0.3275839]
[1725932730615,3.79767767,2342.9,2342.2,2.4394]
[1725932730616,3.69096609,2342.7,2342.2,2.4394]
[1725932731118,3.0,2342.8,2342.2,2.4394]
[1725932731775,3.10672064,2342.8,2342.2,2.4394]
[1725932733112,3.1067206,2342.8,2342.2,2.4394]
[1725932733321,3.1067206,2342.8,2342.3,0.97994]
[1725932734320,0.10672064,2342.7,2342.3,0.97994]
[1725932734474,0.10672064,2342.7,2342.2,2.4394]
[1725932734674,2.3153,2342.6,2342.1,7.36]
[1725932734888,2.3153,2342.6,2341.9,2.4276]
[1725932735523,3.69096609,2342.1,2341.5,4.33789495]
[1725932735698,3.69096609,2341.8,2341.3,2.4276]
[1725932737031,0.10676229,2341.9,2341.3,2.4276]
[1725932737200,0.10676229,2341.9,2341.4,0.08540988]
[1725932737393,0.10676229,2341.9,2341.4,0.33671087]
[1725932737590,6.69096609,2342.0,2341.4,0.33671087]
[1725932737908,0.10675951,2341.9,2341.4,0.33671087]
[1725932738220,0.10675951,2341.9,2341.5,2.443]
[1725932738408,0.10675045,2342.3,2341.5,2.52840763]
[1725932738733,0.10675045,2342.2,2341.6,0.27797086]
[1725932738903,0.10675045,2342.2,2341.6,0.36336912]
[1725932739437,3.79771654,2342.2,2341.6,0.36336912]
[1725932739940,3.79771654,2342.2,2341.6,0.27797086]
[1725932740227,3.69096609,2341.8,2340.9,2.3534]
[1725932743221,2.58596264,2341.7,2340.9,2.3534]
[1725932743460,3.69096609,2341.4,2340.9,2.3534]
[1725932743758,3.0,2341.6,2341.0,0.23534]
[1725932743759,0.10678372,2341.5,2341.0,0.23534]
[1725932745247,3.10678364,2341.6,2341.1,0.08542691]
[1725932745452,3.69096609,2341.8,2341.1,0.08542691]
[1725932745453,3.10677152,2341.7,2341.2,2.3843]
[1725932747060,0.10677185,2341.9,2341.3,0.08541748]
[1725932747209,0.10677185,2341.9,2341.4,2.3843]
[1725932747425,0.10677185,2341.9,2341.5,0.24697175]
[1725932747863,3.79772608,2342.0,2341.5,0.24697175]
[1725932748238,3.79772608,2342.0,2341.4,2.3843]
[1725932748562,3.0,2341.9,2341.4,2.3843]
[1725932753262,0.10675999,2342.0,2341.4,2.3843]
[1725932753467,0.10674755,2342.3,2341.6,2.3736]
[1725932753679,3.69096609,2342.4,2341.8,2.3736]
[1725932753885,3.69096609,2342.4,2341.9,0.08539168]
[1725932754087,0.10674184,2342.6,2341.9,0.08539168]
[1725932754249,3.79770793,2342.6,2341.9,0.08539168]
[1725932754445,3.79770793,2342.6,2341.9,0.35588083]
[1725932754766,3.0,2342.5,2342.0,2.3736]
[1725932754972,0.10674184,2342.6,2342.0,2.3736]
[1725932755153,0.10672279,2342.9,2342.2,2.3736]
[1725932755481,0.10672279,2342.9,2342.3,0.08537603]
[1725932755656,0.10672279,2342.9,2342.3,0.33127363]
[1725932755852,0.10671787,2343.0,2342.4,2.3736]
[1725932756054,0.10671122,2343.1,2342.5,0.08536898]
[1725932756255,0.10671122,2343.1,2342.5,0.0853683]
[1725932756464,3.69096609,2343.2,2342.6,2.341]
[1725932756756,3.79767122,2343.2,2342.6,2.58363683]
[1725932756941,3.79767122,2343.2,2342.7,0.08536364]
[1725932757358,3.69096609,2343.2,2342.7,0.08536364]
[1725932757691,3.69096609,2343.2,2342.6,2.58363683]
[1725932758478,3.69096609,2343.0,2342.6,2.58363683]
[1725932758694,3.69096609,2342.8,2342.3,9.7875]
[1725932758854,0.10672148,2342.7,2342.3,9.7875]
[1725932759058,3.69096609,2342.8,2342.3,2.4275]
[1725932759470,0.10672148,2343.0,2342.3,2.4275]
[1725932759471,3.79768757,2343.0,2342.3,2.4275]
[1725932759655,3.79768757,2343.0,2342.3,2.67025]
[1725932759656,3.0,2342.9,2342.3,2.67025]
[1725932759865,0.10671825,2342.8,2342.3,2.67025]
[1725932760647,3.79768434,2342.8,2342.3,2.4275]
[1725932760848,3.69096609,2342.6,2342.1,2.4275]
[1725932761145,0.1067271,2342.5,2342.1,2.4275]
[1725932761300,3.69096609,2342.4,2341.9,10.05798915]
[1725932761464,3.1067271,2342.5,2342.0,2.4299]
[1725932761465,3.0,2342.5,2342.0,2.4299]
[1725932761664,3.0,2342.7,2342.2,2.4299]
[1725932761871,3.69096609,2342.8,2342.2,2.4299]
[1725932762189,0.10672149,2342.9,2342.2,2.4299]
[1725932762378,3.10672149,2342.9,2342.2,2.4299]
[1725932763002,6.16516609,2342.4,2341.9,7.36]
[1725932763293,3.69096609,2342.0,2341.7,2.4461]
[1725932763596,3.69096609,2342.2,2341.7,2.4461]
[1725932763780,0.10675395,2342.1,2341.7,2.4461]
[1725932764088,0.10675395,2342.1,2341.7,2.69071]
[1725932765382,3.69096609,2342.0,2341.3,2.4461]
[1725932765587,0.10675404,2341.9,2341.3,2.4461]
[1725932766374,3.69096609,2341.6,2340.6,2.424]
[1725932771813,6.03016609,2341.6,2340.6,2.424]
[1725932774009,3.7977392,2341.8,2340.6,2.424]
[1725932774213,3.0,2341.7,2340.8,2.3178]
[1725932774983,0.10677187,2341.6,2340.8,2.3178]
[1725932776257,3.10677193,2341.7,2340.8,2.3178]
[1725932777255,3.0,2341.7,2340.8,2.3178]
[1725932777453,3.0,2341.7,2341.0,2.4744]
[1725932778311,3.69096609,2342.0,2341.0,2.4744]
[1725932778312,3.10675884,2341.9,2341.0,2.4744]
[1725932780747,3.69096609,2341.8,2341.0,2.4744]
[1725932781725,0.10676128,2341.7,2341.0,2.4744]
[1725932781962,3.69096609,2341.6,2341.0,2.4744]
[1725932782165,0.10676731,2341.5,2341.0,2.4744]
[1725932782370,4.42032186,2341.6,2341.0,2.4744]
[1725932784050,3.69096609,2341.4,2340.8,2.4988]
[1725932785040,0.1067828,2341.3,2340.8,2.4988]
[1725932785234,0.1067828,2341.3,2340.8,2.87652]
[1725932785470,3.1067828,2341.3,2340.8,2.4988]
[1725932785840,3.69096609,2341.0,2340.6,2.4923]
[1725932786038,3.69096609,2341.0,2339.7,1.33490855]
[1725932786039,3.69096609,2341.0,2340.3,2.4923]
[1725932786807,3.79775119,2341.2,2340.3,2.4923]
[1725932786965,3.79775119,2341.2,2340.4,0.98523]
[1725932787389,3.79775119,2341.2,2340.5,2.2726]